bitfinex-derivatives/quotes_SOLF0:USTF0_20240910
["timestamp","ask_amount","ask_price","bid_price","bid_amount"]
[1725979437687,7.391,135.27,135.16,27.48928425]
[1725979437885,7.391,135.27,135.18,22.73]
[1725979438183,7.391,135.26,135.19,14.2]
[1725979438570,7.391,135.26,135.21,3.6975]
[1725979439171,7.391,135.27,135.21,3.6975]
[1725979439382,7.391,135.27,135.19,14.2]
[1725979440186,21.591,135.27,135.17,14.2]
[1725979440371,21.591,135.27,135.2,3.6978]
[1725979440986,21.591,135.27,135.17,14.2]
[1725979441187,21.604,135.25,135.16,4.47898425]
[1725979441581,21.604,135.25,135.19,3.6981]
[1725979441891,21.604,135.25,135.16,4.47898425]
[1725979442076,7.404,135.25,135.17,14.2]
[1725979442277,7.404,135.26,135.21,3.6976]
[1725979442789,7.404,135.26,135.21,3.6975]
[1725979444190,7.404,135.24,135.16,4.47898425]
[1725979444390,7.404,135.24,135.17,14.2]
[1725979444592,7.404,135.24,135.16,4.47898425]
[1725979444786,7.404,135.24,135.18,14.2]
[1725979445179,10.123,135.25,135.18,14.2]
[1725979445388,8.7972,135.25,135.2,14.2]
[1725979445587,7.404,135.25,135.2,14.2]
[1725979445786,7.404,135.25,135.23,3.697]
[1725979446287,7.404,135.28,135.23,3.697]
[1725979446490,7.404,135.28,135.18,14.2]
[1725979446786,7.404,135.26,135.18,14.2]
[1725979446986,7.404,135.26,135.2,3.6978]
[1725979447191,7.404,135.26,135.16,18.67898425]
[1725979447385,21.604,135.25,135.16,18.67898425]
[1725979447782,21.604,135.25,135.16,3.60938425]
[1725979447979,14.2,135.23,135.15,1.3347]
[1725979448181,14.2,135.23,135.16,3.6989]
[1725979448385,8.7197,135.22,135.15,1.3347]
[1725979448687,8.7197,135.22,135.16,3.67665556]
[1725979448886,8.7197,135.22,135.17,3.6987]
[1725979450086,8.7197,135.22,135.16,7.38194487]
[1725979450293,8.7197,135.22,135.16,3.699]
[1725979450597,8.7197,135.22,135.12,14.2]
[1725979450797,8.7197,135.22,135.15,3.6992]
[1725979450994,8.7197,135.22,135.15,3.61816297]
[1725979451191,8.7197,135.22,135.12,14.2]
[1725979452091,8.7197,135.22,135.14,14.2]
[1725979452995,8.7197,135.22,135.15,3.71105025]
[1725979453190,8.7197,135.22,135.16,3.6989]
[1725979453785,8.7197,135.22,135.15,7.41035025]
[1725979453990,8.7197,135.22,135.12,14.2]
[1725979454390,8.7197,135.22,135.15,3.6992]
[1725979454600,8.7197,135.22,135.15,3.7166946]
[1725979454793,8.7197,135.22,135.17,3.6987]
[1725979454989,8.7197,135.22,135.15,3.66526398]
[1725979455187,8.7197,135.22,135.12,14.2]
[1725979455387,8.7197,135.22,135.15,3.6992]
[1725979455690,8.7197,135.22,135.15,7.32857355]
[1725979456104,8.7197,135.22,135.15,3.6992]
[1725979456502,8.7197,135.22,135.15,3.61457337]
[1725979456702,8.7197,135.22,135.12,14.2]
[1725979456904,8.7197,135.22,135.18,3.6984]
[1725979457196,1.3157,135.22,135.18,3.75887511]
[1725979457403,1.3157,135.22,135.16,14.2]
[1725979457595,1.3157,135.22,135.18,3.6983]
[1725979457797,1.3157,135.22,135.18,3.7763635]
[1725979457997,1.3157,135.22,135.16,14.2]
[1725979458391,1.3157,135.22,135.16,17.81022718]
[1725979458797,1.3157,135.22,135.18,3.6984]
[1725979459400,1.3157,135.22,135.16,17.81022718]
[1725979460304,1.3157,135.22,135.18,3.6983]
[1725979460901,1.3157,135.22,135.17,3.6987]
[1725979461207,1.3157,135.22,135.16,17.81022718]
[1725979462598,1.3157,135.22,135.17,3.6987]
[1725979463805,1.3157,135.22,135.16,17.81022718]
[1725979464310,1.3157,135.22,135.18,3.6985]
[1725979466409,1.3157,135.22,135.17,3.6987]
[1725979466906,1.3157,135.22,135.15,3.75721474]
[1725979466907,8.7197,135.22,135.16,3.6989]
[1725979467410,8.7197,135.22,135.17,3.6987]
[1725979467605,8.7197,135.22,135.15,3.75721474]
[1725979467799,8.7197,135.22,135.14,14.2]
[1725979468606,8.7197,135.22,135.17,3.6986]
[1725979468802,8.7197,135.22,135.17,3.7581351]
[1725979469004,7.404,135.21,135.16,14.2]
[1725979469201,7.404,135.21,135.16,17.86489398]
[1725979469406,7.404,135.21,135.18,14.2]
[1725979469802,7.404,135.21,135.19,3.6981]
[1725979470008,1.3079,135.23,135.19,3.6981]
[1725979470705,1.3079,135.23,135.18,3.6984]
[1725979470909,1.3079,135.23,135.18,7.45449911]
[1725979471109,7.404,135.22,135.18,3.6984]
[1725979471713,7.404,135.22,135.18,7.32279703]
[1725979472117,7.404,135.22,135.19,3.6981]
[1725979472307,7.404,135.22,135.16,14.2]
[1725979472800,7.404,135.22,135.18,3.6983]
[1725979473610,7.404,135.22,135.16,17.9120751]
[1725979473611,7.404,135.22,135.17,3.6988]
[1725979474108,7.404,135.22,135.16,3.699]
[1725979474309,7.404,135.22,135.16,3.66027822]
[1725979474613,7.404,135.22,135.17,3.6986]
[1725979475409,7.404,135.22,135.18,3.6985]
[1725979475614,7.404,135.22,135.16,3.74500517]
[1725979475807,7.404,135.22,135.14,14.2]
[1725979476204,7.404,135.22,135.18,3.6984]
[1725979476611,7.404,135.22,135.19,3.698]
[1725979477205,7.404,135.22,135.18,17.98404381]
[1725979477409,7.404,135.22,135.13,14.2]
[1725979477410,11.3395,135.29,135.2,14.2]
[1725979477912,11.3395,135.29,135.22,14.2]
[1725979478216,7.404,135.35,135.26,14.2]
[1725979478407,1.11686557,135.34,135.27,3.61382474]
[1725979478711,11.1103351,135.33,135.24,14.2]
[1725979479111,7.404,135.33,135.24,14.2]
[1725979479512,7.404,135.33,135.24,17.96961219]
[1725979480213,7.404,135.31,135.24,3.76961219]
[1725979480511,7.404,135.31,135.22,14.2]
[1725979480717,8.6961,135.31,135.22,14.2]
[1725979480917,8.6961,135.31,135.22,17.82066415]
[1725979481112,8.6961,135.31,135.25,3.6966]
[1725979482417,8.6961,135.31,135.22,17.82066415]
[1725979482418,1.2921,135.31,135.26,3.6962]
[1725979483623,1.2921,135.31,135.24,14.2]
[1725979484120,1.2921,135.31,135.26,3.6961]
[1725979484915,1.2921,135.31,135.27,3.696]
[1725979485115,1.2921,135.31,135.24,14.2]
[1725979485313,1.2921,135.31,135.26,3.6962]
[1725979485519,1.3859,135.32,135.26,14.2]
[1725979486321,1.3859,135.32,135.28,3.6955]
[1725979486520,1.3859,135.32,135.25,14.2]
[1725979486719,1.3859,135.32,135.22,14.2]
[1725979486920,1.2783,135.31,135.22,17.88372535]
[1725979487224,1.2783,135.31,135.24,3.6967]
[1725979487425,1.2783,135.31,135.22,3.68372535]
[1725979487426,8.804,135.3,135.22,3.68372535]
[1725979487825,8.804,135.3,135.23,3.6971]
[1725979488323,8.804,135.3,135.22,7.38102535]
[1725979488522,8.804,135.3,135.22,3.6973]
[1725979488920,8.804,135.3,135.23,3.6969]
[1725979490720,8.804,135.3,135.21,14.2]
[1725979490920,7.404,135.26,135.17,15.5472]
[1725979491626,1.382,135.25,135.17,15.5472]
[1725979491930,1.382,135.25,135.17,14.2]
[1725979492331,1.382,135.25,135.15,17.85119893]
[1725979492332,21.604,135.23,135.15,17.85119893]
[1725979492719,21.604,135.23,135.13,14.2]
[1725979493131,7.404,135.21,135.13,14.2]
[1725979493327,1.2659,135.2,135.11,14.2]
[1725979494221,1.2659,135.2,135.14,3.6996]
[1725979494416,1.2659,135.2,135.11,14.2]
[1725979494818,1.2659,135.2,135.14,3.6994]
[1725979495525,1.2659,135.2,135.15,3.6993]
[1725979499822,1.2659,135.2,135.11,14.2]
[1725979500225,1.2659,135.2,135.15,3.6993]
[1725979500932,7.404,135.18,135.11,14.2]
[1725979501228,7.404,135.18,135.1,0.8686]
[1725979501425,8.7332,135.18,135.13,3.6999]
[1725979501620,8.7332,135.18,135.1,0.8686]
[1725979501621,8.7332,135.18,135.11,14.2]
[1725979501836,7.404,135.18,135.11,14.2]
[1725979502028,1.2659,135.2,135.11,14.2]
[1725979502328,1.2659,135.2,135.14,3.6995]
[1725979502635,1.2659,135.2,135.11,14.2]
[1725979503145,1.2659,135.2,135.15,3.6993]
[1725979504031,7.404,135.2,135.15,3.69097061]
[1725979504223,7.404,135.2,135.13,14.2]
[1725979504737,7.404,135.2,135.1,0.8686]
[1725979504738,7.404,135.2,135.15,14.2]
[1725979504933,7.404,135.2,135.15,17.83620185]
[1725979505140,7.404,135.19,135.18,3.6983]
[1725979505834,7.404,135.23,135.15,17.83620185]
[1725979506228,7.404,135.23,135.19,3.6981]
[1725979506722,7.404,135.23,135.15,17.83620185]
[1725979506925,7.404,135.23,135.17,14.2]
[1725979507737,7.404,135.23,135.17,17.89015022]
[1725979507924,7.404,135.25,135.17,17.89015022]
[1725979508939,7.404,135.29,135.19,14.2]
[1725979509531,3.8788,135.32,135.19,14.2]
[1725979509532,7.404,135.27,135.19,14.2]
[1725979509933,10.1069,135.26,135.2,3.6978]
[1725979510831,10.1069,135.26,135.21,3.6975]
[1725979511743,10.1069,135.26,135.19,14.2]
[1725979512240,10.1069,135.26,135.21,3.6975]
[1725979512439,10.1069,135.26,135.19,14.2]
[1725979512643,7.404,135.27,135.19,14.2]
[1725979512832,7.404,135.27,135.23,3.697]
[1725979513945,7.404,135.29,135.23,3.697]
[1725979514648,7.404,135.29,135.22,3.6974]
[1725979515947,14.2,135.3,135.19,14.2]
[1725979515948,7.404,135.3,135.19,14.2]
[1725979516248,21.604,135.3,135.21,14.2]
[1725979516443,21.604,135.3,135.22,3.6973]
[1725979517442,21.604,135.3,135.23,3.6972]
[1725979517644,7.404,135.27,135.19,14.2]
[1725979517839,7.404,135.27,135.21,3.6975]
[1725979518050,7.404,135.27,135.17,17.89015022]
[1725979518251,7.404,135.27,135.19,14.2]
[1725979518549,7.404,135.27,135.19,17.95194199]
[1725979518737,7.404,135.29,135.24,3.6969]
[1725979519346,7.404,135.29,135.22,14.2]
[1725979519548,7.404,135.29,135.24,14.2]
[1725979520839,7.404,135.3,135.27,3.696]
[1725979521052,7.404,135.3,135.26,3.72086779]
[1725979521249,7.404,135.3,135.23,14.2]
[1725979521450,7.404,135.3,135.24,3.6969]
[1725979521845,21.604,135.3,135.19,3.75194199]
[1725979522044,21.604,135.28,135.19,14.2]
[1725979522246,21.604,135.28,135.19,17.88602071]
[1725979522451,21.604,135.28,135.21,3.6976]
[1725979523047,21.604,135.28,135.19,17.88602071]
[1725979523251,21.604,135.28,135.22,3.6974]
[1725979523849,7.404,135.3,135.19,17.88602071]
[1725979524048,21.604,135.3,135.2,14.2]
[1725979524257,21.604,135.3,135.19,3.68602071]
[1725979524559,7.404,135.27,135.17,0.8691]
[1725979524756,1.2873,135.26,135.17,0.8691]
[1725979525259,1.2873,135.26,135.19,3.6981]
[1725979525449,1.342,135.25,135.19,14.2]
[1725979525855,8.6913,135.26,135.19,14.2]
[1725979526054,7.404,135.26,135.19,17.98801331]
[1725979526852,8.6913,135.29,135.19,17.98801331]
[1725979527361,8.6913,135.29,135.22,3.6973]
[1725979527662,8.6913,135.29,135.2,14.2]
[1725979528452,8.6913,135.29,135.2,17.92807991]
[1725979528658,1.2873,135.29,135.25,3.6965]
[1725979528965,1.2873,135.29,135.2,17.92807991]
[1725979529150,1.2873,135.29,135.24,3.6967]
[1725979529351,1.2873,135.29,135.2,17.92807991]
[1725979530266,8.6913,135.29,135.2,17.92807991]
[1725979530657,8.6913,135.29,135.21,3.6974]
[1725979531263,7.404,135.27,135.18,14.2]
[1725979531457,7.404,135.25,135.16,15.5638]
[1725979531664,1.3384,135.24,135.17,3.69478401]
[1725979531871,7.404,135.23,135.17,7.39338401]
[1725979532164,7.404,135.23,135.17,3.6986]
[1725979532960,7.404,135.23,135.16,3.699]
[1725979533667,7.404,135.23,135.17,3.6988]
[1725979533867,7.404,135.23,135.16,14.2]
[1725979534067,7.404,135.23,135.19,3.6981]
[1725979534266,7.404,135.23,135.16,19.37990443]
[1725979534471,7.404,135.23,135.19,3.6981]
[1725979534954,7.404,135.23,135.18,14.2]
[1725979535157,7.404,135.26,135.2,14.2]
[1725979535972,7.404,135.31,135.21,14.2]
[1725979536171,7.404,135.31,135.25,3.6965]
[1725979536561,7.404,135.31,135.23,3.61995763]
[1725979536761,7.404,135.29,135.23,3.697]
[1725979536956,7.404,135.29,135.19,14.2]
[1725979537465,21.604,135.29,135.19,14.2]
[1725979538567,21.604,135.29,135.21,3.6976]
[1725979538766,14.2,135.27,135.17,14.2]
[1725979538962,2.7451,135.26,135.17,14.2]
[1725979539167,2.7451,135.26,135.2,3.6978]
[1725979540175,2.7451,135.26,135.21,3.6976]
[1725979540361,2.7451,135.26,135.17,14.2]
[1725979540965,2.7451,135.26,135.2,3.6978]
[1725979541963,7.404,135.25,135.21,3.6977]
[1725979542170,7.404,135.25,135.19,14.2]
[1725979542982,8.7066,135.29,135.19,14.2]
[1725979543273,8.7066,135.29,135.21,14.2]
[1725979543868,8.7066,135.29,135.23,3.697]
[1725979544481,7.404,135.27,135.19,14.2]
[1725979544677,7.404,135.27,135.17,14.2]
[1725979544985,7.404,135.25,135.18,3.6984]
[1725979545171,19.17057474,135.26,135.17,14.2]
[1725979545172,7.404,135.23,135.17,14.2]
[1725979545472,7.404,135.23,135.2,3.6978]
[1725979545670,7.404,135.23,135.17,14.2]
[1725979546072,7.404,135.23,135.22,3.6974]
[1725979547276,7.404,135.3,135.21,14.2]
[1725979547769,7.404,135.28,135.19,14.2]
[1725979547964,1.37,135.27,135.19,14.2]
[1725979548273,1.37,135.27,135.21,3.6975]
[1725979548574,1.3814,135.26,135.21,14.2]
[1725979548777,1.37,135.27,135.21,14.2]
[1725979549371,1.37,135.27,135.23,3.697]
[1725979549573,1.37,135.27,135.19,14.2]
[1725979549969,1.37,135.27,135.21,3.6976]
[1725979550563,1.37,135.27,135.2,3.6979]
[1725979550564,7.404,135.26,135.2,3.6979]
[1725979550770,1.3118,135.25,135.17,14.2]
[1725979551471,1.3118,135.25,135.19,3.6982]
[1725979551671,1.3118,135.25,135.17,14.2]
[1725979554178,1.3118,135.25,135.21,3.6977]
[1725979554384,1.3118,135.25,135.17,14.2]
[1725979554582,1.3118,135.25,135.19,3.698]
[1725979554876,1.3118,135.25,135.17,14.2]
[1725979555091,1.3118,135.25,135.2,3.6978]
[1725979555580,1.3118,135.25,135.17,14.2]
[1725979556079,1.3118,135.25,135.22,3.6973]
[1725979556280,1.3118,135.25,135.17,14.2]
[1725979556573,1.3118,135.25,135.22,3.6973]
[1725979557774,1.37,135.27,135.19,14.2]
[1725979558681,8.774,135.27,135.19,14.2]
[1725979558888,8.774,135.27,135.21,3.6976]
[1725979559180,1.3368,135.26,135.21,3.6976]
[1725979559686,1.3368,135.26,135.22,3.6974]
[1725979560386,1.3368,135.26,135.17,14.2]
[1725979561586,10.0366,135.26,135.17,14.2]
[1725979561774,10.0366,135.26,135.2,3.6978]
[1725979561974,27.99547237,135.26,135.17,14.2]
[1725979562579,27.99547237,135.26,135.16,5.17990443]
[1725979562580,7.404,135.23,135.16,5.17990443]
[1725979562777,7.404,135.23,135.14,0.8708]
[1725979562985,1.3589,135.22,135.17,3.6987]
[1725979563584,1.3589,135.22,135.15,14.2]
[1725979563780,1.3589,135.22,135.18,3.6985]
[1725979564183,1.3589,135.22,135.2,3.698]
[1725979564377,1.3589,135.22,135.14,0.8708]
[1725979564378,7.404,135.22,135.17,14.2]
[1725979564689,7.404,135.25,135.17,17.9136394]
[1725979565682,7.404,135.25,135.15,14.2]
[1725979565877,7.404,135.25,135.19,3.6982]
[1725979566283,7.404,135.25,135.15,17.88477692]
[1725979566478,7.404,135.25,135.21,3.6977]
[1725979566680,7.404,135.25,135.17,14.2]
[1725979567383,1.2828,135.27,135.21,14.2]
[1725979568081,7.404,135.3,135.21,14.2]
[1725979568585,7.404,135.3,135.23,3.697]
[1725979568880,7.404,135.3,135.21,14.2]
[1725979570289,7.404,135.3,135.25,3.6965]
[1725979570784,7.404,135.3,135.24,7.39177356]
[1725979570983,7.404,135.3,135.24,3.6967]
[1725979571585,7.404,135.3,135.24,7.47535745]
[1725979571886,7.404,135.3,135.25,3.6966]
[1725979572677,7.404,135.3,135.2,14.2]
[1725979573477,7.404,135.3,135.21,1.343]
[1725979573885,7.404,135.3,135.22,14.2]
[1725979574091,8.676,135.31,135.24,14.2]
[1725979574300,7.404,135.31,135.24,17.8954434]
[1725979574486,7.404,135.31,135.28,3.6957]
[1725979574800,7.404,135.31,135.24,17.8954434]
[1725979574983,1.345,135.31,135.25,3.6965]
[1725979575180,1.345,135.31,135.24,3.6954434]
[1725979575379,21.604,135.29,135.21,1.343]
[1725979575594,21.604,135.29,135.21,3.6977]
[1725979575979,7.404,135.26,135.21,3.6977]
[1725979576187,7.404,135.26,135.19,15.0722]
[1725979576188,7.404,135.26,135.19,14.2]
[1725979576591,7.404,135.26,135.21,3.6976]
[1725979577199,7.404,135.24,135.19,3.6981]
[1725979577496,7.404,135.24,135.15,1.3008]
[1725979577695,14.2,135.23,135.17,3.6986]
[1725979578695,14.2,135.23,135.18,3.6984]
[1725979578897,21.604,135.24,135.16,3.68590588]
[1725979579090,21.604,135.24,135.15,15.5008]
[1725979579595,21.604,135.24,135.15,19.11864017]
[1725979579894,21.604,135.24,135.19,3.6981]
[1725979580098,7.404,135.24,135.17,14.2]
[1725979582193,21.604,135.24,135.15,19.11864017]
[1725979582700,21.604,135.24,135.15,3.61784017]
[1725979583094,21.604,135.24,135.15,14.2]
[1725979583290,7.404,135.24,135.15,17.92132384]
[1725979583697,7.404,135.24,135.18,3.6983]
[1725979584096,7.404,135.24,135.15,17.92132384]
[1725979585215,7.404,135.24,135.17,3.6986]
[1725979587099,7.404,135.24,135.18,3.6985]
[1725979587600,7.404,135.24,135.15,17.92132384]
[1725979588000,7.404,135.24,135.17,14.2]
[1725979588200,7.404,135.24,135.19,14.2]
[1725979588401,7.404,135.24,135.19,17.91558459]
[1725979588612,7.404,135.24,135.17,14.2]
[1725979589109,7.404,135.24,135.17,17.89116429]
[1725979589300,7.404,135.24,135.16,1.3225]
[1725979589494,21.604,135.24,135.14,0.8718]
[1725979589695,21.604,135.24,135.13,14.2]
[1725979590302,21.604,135.24,135.16,3.699]
[1725979590897,21.604,135.24,135.17,3.6988]
[1725979591409,21.604,135.24,135.18,3.6985]
[1725979591812,7.404,135.24,135.17,14.2]
[1725979592102,7.404,135.28,135.19,14.2]
[1725979592308,7.404,135.28,135.21,14.2]
[1725979593206,21.604,135.28,135.19,14.2]
[1725979593403,1.333,135.27,135.17,14.2]
[1725979593911,1.3639,135.26,135.17,14.2]
[1725979594704,1.3639,135.26,135.21,3.6975]
[1725979595214,1.3639,135.26,135.2,3.6978]
[1725979595506,1.3639,135.26,135.16,6.22865204]
[1725979595507,1.3639,135.26,135.21,14.2]
[1725979595714,1.333,135.27,135.24,3.6967]
[1725979596118,1.333,135.27,135.21,14.2]
[1725979596910,8.7263,135.3,135.24,3.6967]
[1725979597215,8.7263,135.3,135.23,3.7276195]
[1725979597412,8.7263,135.3,135.21,14.2]
[1725979598316,1.3223,135.3,135.23,14.2]
[1725979598510,1.3223,135.3,135.27,3.696]
[1725979599810,1.3223,135.3,135.28,3.6958]
[1725979600215,1.3223,135.3,135.23,14.2]
[1725979600414,1.3223,135.3,135.23,17.9725517]
[1725979601114,1.3223,135.3,135.26,3.6961]
[1725979603210,1.3223,135.3,135.23,17.9725517]
[1725979603714,1.3223,135.3,135.23,3.7725517]
[1725979603914,1.3223,135.3,135.22,2.1673]
[1725979604312,1.3223,135.3,135.26,3.6962]
[1725979604521,1.3223,135.3,135.24,3.76256749]
[1725979604715,1.3223,135.3,135.23,14.2]
[1725979604920,1.3223,135.3,135.28,3.6956]
[1725979605219,1.3223,135.3,135.23,17.92891701]
[1725979605426,1.3223,135.3,135.26,3.6962]
[1725979605620,1.3223,135.3,135.23,17.92891701]
[1725979605824,1.3223,135.3,135.23,3.72891701]
[1725979606120,1.3223,135.3,135.26,3.6963]
[1725979606520,1.3223,135.3,135.24,3.79003032]
[1725979606720,1.3223,135.3,135.25,3.6965]
[1725979606917,1.3223,135.3,135.24,3.74972265]
[1725979607116,1.3223,135.3,135.26,3.6961]
[1725979607715,1.3223,135.3,135.24,3.73234228]
[1725979607911,1.3223,135.3,135.27,3.6961]
[1725979608211,8.7792,135.31,135.25,12.73949264]
[1725979608519,7.404,135.31,135.27,9.08]
[1725979608824,7.404,135.31,135.28,3.6957]
[1725979609215,7.404,135.32,135.28,3.6957]
[1725979609619,16.484,135.32,135.28,3.6957]
[1725979609925,16.484,135.32,135.27,9.08]
[1725979610518,16.484,135.32,135.28,3.6958]
[1725979612024,16.484,135.32,135.27,3.696]
[1725979612325,7.404,135.29,135.25,12.6965964]
[1725979612718,7.404,135.29,135.26,3.6962]
[1725979614122,16.484,135.31,135.27,3.6961]
[1725979614328,16.484,135.31,135.26,9.08]
[1725979614520,16.484,135.31,135.26,12.7761]
[1725979616130,16.484,135.31,135.25,3.74944013]
[1725979617322,16.484,135.31,135.26,3.6962]
[1725979618133,16.484,135.31,135.25,7.44594013]
[1725979618326,7.404,135.31,135.25,7.44594013]
[1725979618525,16.484,135.31,135.25,3.74944013]
[1725979620225,16.484,135.31,135.25,7.44594013]
[1725979620433,16.484,135.28,135.22,10.3749]
[1725979620827,16.484,135.28,135.23,3.69314399]
[1725979621333,7.404,135.28,135.24,12.7766]
[1725979621523,7.404,135.27,135.24,9.08]
[1725979621727,7.404,135.27,135.26,3.6963]
[1725979622333,7.404,135.27,135.23,3.69314399]
[1725979622639,7.404,135.26,135.22,9.08]
[1725979622843,7.404,135.26,135.23,3.697]
[1725979623436,7.404,135.28,135.23,3.697]
[1725979623843,16.484,135.26,135.18,1.3993]
[1725979624148,7.404,135.21,135.16,3.74435204]
[1725979624458,7.404,135.21,135.09,15.56660675]
[1725979624459,16.484,135.21,135.1,15.56660675]
[1725979624755,7.404,135.19,135.14,9.08]
[1725979625042,7.404,135.19,135.15,3.62352814]
[1725979625243,7.404,135.19,135.15,9.08]
[1725979625746,7.404,135.19,135.14,9.08]
[1725979625747,16.484,135.19,135.14,9.08]
[1725979625953,16.484,135.19,135.15,3.71021369]
[1725979626152,16.484,135.18,135.09,2.5566]
[1725979626442,16.484,135.18,135.09,1.3993]
[1725979626443,16.484,135.16,135.09,1.3993]
[1725979626745,16.484,135.16,135.1,12.7746712]
[1725979626943,16.484,135.16,135.11,9.08]
[1725979627550,7.404,135.16,135.11,9.08]
[1725979627940,7.404,135.16,135.12,9.08]
[1725979628144,7.404,135.16,135.1,3.6946712]
[1725979628547,7.404,135.16,135.09,14.23]
[1725979628955,7.404,135.16,135.09,17.84813226]
[1725979629844,7.404,135.16,135.12,3.7001]
[1725979630248,1.2649,135.17,135.12,14.23]
[1725979630547,1.3357,135.18,135.12,14.23]
[1725979630747,10.1566,135.23,135.12,14.23]
[1725979630942,1.2743,135.22,135.12,14.23]
[1725979631645,1.2743,135.22,135.14,14.23]
[1725979632049,1.2743,135.22,135.14,17.9296]
[1725979632453,1.2743,135.22,135.14,14.23]
[1725979633946,1.2743,135.22,135.15,3.6993]
[1725979634454,1.2743,135.22,135.12,14.23]
[1725979634851,1.2743,135.22,135.14,14.23]
[1725979635348,1.2743,135.22,135.17,3.6988]
[1725979635545,1.2743,135.22,135.16,3.70771963]
[1725979635747,1.2743,135.22,135.14,14.23]
[1725979635956,1.2743,135.22,135.16,14.23]
[1725979636150,1.2743,135.22,135.17,3.67515357]
[1725979636455,1.3949,135.23,135.16,14.23]
[1725979636654,1.3949,135.23,135.19,14.23]
[1725979637159,1.3949,135.23,135.2,3.698]
[1725979637459,7.404,135.27,135.2,3.698]
[1725979637657,8.7054,135.27,135.2,3.698]
[1725979638257,8.7054,135.27,135.19,14.23]
[1725979638755,8.7054,135.27,135.19,17.9281]
[1725979639057,8.7054,135.27,135.19,14.23]
[1725979640354,8.7054,135.27,135.18,3.69587743]
[1725979640547,8.7054,135.27,135.17,14.23]
[1725979640746,8.7054,135.27,135.2,14.23]
[1725979640958,8.7054,135.27,135.2,17.90379402]
[1725979641256,8.7054,135.27,135.21,3.6976]
[1725979641657,8.7054,135.27,135.2,3.67379402]
[1725979641853,8.7054,135.27,135.18,14.23]
[1725979641854,22.9354,135.27,135.18,14.23]
[1725979642049,22.9354,135.27,135.19,3.6982]
[1725979642355,22.9354,135.27,135.19,7.47408754]
[1725979642952,22.9354,135.27,135.2,3.698]
[1725979644261,8.7054,135.27,135.21,3.6977]
[1725979644459,8.7054,135.27,135.2,14.23]
[1725979644659,8.7054,135.27,135.2,18.01698438]
[1725979644859,8.7054,135.27,135.22,3.6973]
[1725979645054,8.7054,135.27,135.2,18.01698438]
[1725979645651,8.7054,135.27,135.21,3.6976]
[1725979646058,8.7054,135.27,135.2,18.01698438]
[1725979646561,8.7054,135.27,135.22,14.23]
[1725979646754,1.3493,135.28,135.24,3.6967]
[1725979647260,1.3493,135.28,135.25,3.6965]
[1725979647557,1.3493,135.28,135.22,14.23]
[1725979647750,1.3493,135.28,135.26,3.6962]
[1725979647955,1.322,135.3,135.26,3.6962]
[1725979648157,1.322,135.3,135.24,14.23]